bitfinex-derivatives/quotes_ETHF0:USTF0_20250411
["timestamp","ask_amount","ask_price","bid_price","bid_amount"]
[1744334287075,8.96276043,1524.1,1524.0,46.2303]
[1744334287571,8.96276043,1524.1,1524.0,47.54365]
[1744334287772,8.96276043,1524.1,1524.0,46.2303]
[1744334287975,7.64949043,1524.1,1524.0,47.54365]
[1744334290069,7.64949043,1524.1,1524.0,52.54365]
[1744334290267,0.17933489,1524.1,1524.0,53.20045]
[1744334290463,10.25483986,1524.2,1524.1,1.31327]
[1744334290668,0.0098464,1524.2,1524.1,4.52107]
[1744334290871,0.0098464,1524.2,1524.1,6.75227]
[1744334291075,0.0098464,1524.2,1524.1,47.55227]
[1744334291276,0.0098464,1524.2,1524.1,50.76007]
[1744334291474,0.0098464,1524.2,1524.1,49.4468]
[1744334291672,1.3230264,1524.2,1524.1,49.4468]
[1744334291871,1.3230264,1524.2,1524.1,40.8]
[1744334292375,6.3230264,1524.2,1524.1,40.8]
[1744334292678,1.3230264,1524.2,1524.1,40.8]
[1744334293473,0.0098464,1524.2,1524.1,40.8]
[1744334293673,0.0098464,1524.2,1524.1,46.2067]
[1744334293874,1.3230264,1524.2,1524.1,46.2067]
[1744334294080,0.0098464,1524.2,1524.1,47.51997]
[1744334294265,0.0098464,1524.2,1524.1,50.72777]
[1744334295078,0.0098464,1524.2,1524.1,47.51997]
[1744334296179,0.0098464,1524.2,1524.1,50.72777]
[1744334296387,0.0098464,1524.2,1524.1,55.72777]
[1744334296573,10.24499346,1524.6,1524.5,1.31292]
[1744334296774,10.24499346,1524.6,1524.5,6.75092]
[1744334297185,10.24499346,1524.6,1524.5,47.55092]
[1744334297383,10.24499346,1524.6,1524.5,53.08372]
[1744334299188,0.0098464,1524.7,1524.6,1.31284]
[1744334299375,0.0098464,1524.7,1524.6,10.05344]
[1744334299576,0.0098464,1524.7,1524.6,15.05344]
[1744334299884,0.0098464,1524.7,1524.6,60.54374]
[1744334300180,0.0098464,1524.7,1524.6,55.54374]
[1744334300681,0.0098464,1524.7,1524.6,60.54374]
[1744334301180,0.0098464,1524.7,1524.6,55.54374]
[1744334301381,0.0098464,1524.7,1524.6,60.54374]
[1744334303086,0.0098464,1524.7,1524.6,66.53574]
[1744334303493,6.4e-06,1524.7,1524.6,66.53574]
[1744334304184,6.4e-06,1524.7,1524.6,75.61833131]
[1744334304385,4.7289,1525.3,1525.2,1.31232]
[1744334304590,4.7289,1525.3,1525.2,6.73832]
[1744334304983,4.7289,1525.3,1525.2,47.53832]
[1744334304984,10.1526,1525.3,1525.2,47.53832]
[1744334305380,11.46484,1525.3,1525.2,46.226]
[1744334305577,16.46484,1525.3,1525.2,46.226]
[1744334306181,15.1526,1525.3,1525.2,46.226]
[1744334306383,10.1526,1525.3,1525.2,46.226]
[1744334306585,11.46484,1525.3,1525.2,46.226]
[1744334306885,4.6613464,1525.4,1525.2,46.226]
[1744334307186,9.76954,1525.3,1525.2,46.226]
[1744334307382,6.56174,1525.3,1525.2,46.226]
[1744334307587,11.56174,1525.3,1525.2,46.226]
[1744334307783,6.56174,1525.3,1525.2,46.226]
[1744334310295,5.2495,1525.3,1525.2,47.53832]
[1744334310797,5.2495,1525.3,1525.2,46.226]
[1744334311011,6.56174,1525.3,1525.2,46.226]
[1744334311292,14.76954,1525.3,1525.2,40.8]
[1744334311497,1.31232,1525.2,1525.1,0.0098464]
[1744334311696,6.54382,1525.2,1525.1,0.0098464]
[1744334311896,11.54382,1525.2,1525.1,0.0098464]
[1744334312597,11.54382,1525.2,1525.1,40.8098464]
[1744334312991,6.54382,1525.2,1525.1,40.8098464]
[1744334313196,5.2315,1525.2,1525.1,40.8098464]
[1744334313396,6.54382,1525.2,1525.1,40.8098464]
[1744334314697,11.08612,1525.2,1525.1,40.8098464]
[1744334317796,16.08612,1525.2,1525.1,40.8098464]
[1744334318507,1.31292,1524.5,1524.4,8.6328]
[1744334318697,1.31292,1524.5,1524.4,5.425]
[1744334318893,1.31292,1524.5,1524.4,46.225]
[1744334319399,4.6114,1524.7,1524.4,51.225]
[1744334319598,13.3822,1525.0,1524.7,1.3127]
[1744334319805,14.69475,1525.0,1524.8,6.73377]
[1744334319994,14.7045964,1525.0,1524.9,5.4211]
[1744334320894,13.3920464,1525.0,1524.9,5.4211]
[1744334321094,14.7045364,1525.0,1524.9,5.4211]
[1744334321294,11.4967364,1525.0,1524.9,5.4211]
[1744334322701,0.0098464,1525.0,1524.9,9.94148]
[1744334322899,0.0098464,1525.0,1524.9,14.94148]
[1744334324598,0.0098464,1525.0,1524.9,55.74148]
[1744334324795,1.312,1525.6,1525.4,1.31215]
[1744334325101,7.10884,1525.7,1525.5,5.7673]
[1744334325302,1.31198,1525.6,1525.5,5.7673]
[1744334325599,1.31206,1525.5,1525.4,10.0253]
[1744334325898,1.31206,1525.5,1525.4,46.226]
[1744334326100,1.31206,1525.5,1525.4,40.8]
[1744334326808,7.10896,1525.5,1525.4,40.8]
[1744334328009,12.10896,1525.5,1525.4,40.8]
[1744334328212,16.73256,1525.5,1525.4,40.8]
[1744334328910,1.31215,1525.4,1525.3,0.0098464]
[1744334329209,14.86945,1525.4,1525.3,0.0098464]
[1744334329409,19.86945,1525.4,1525.3,0.0098464]
[1744334331312,14.86945,1525.4,1525.3,0.0098464]
[1744334333602,19.86945,1525.4,1525.3,6.4e-06]
[1744334333804,1.31241,1525.1,1525.0,40.7992064]
[1744334334010,1.31284,1524.6,1524.5,9.8936]
[1744334334413,1.31282,1524.7,1524.5,50.6936]
[1744334334613,1.31275,1524.7,1524.6,5.3218]
[1744334335314,4.52055,1524.7,1524.6,46.1218]
[1744334336413,1.31275,1524.7,1524.6,46.1218]
[1744334336817,1.31275,1524.7,1524.6,40.8]
[1744334336818,4.52055,1524.7,1524.6,40.8]
[1744334337619,9.52055,1524.7,1524.6,40.8]
[1744334337821,10.04706761,1524.7,1524.6,40.8]
[1744334338012,10.55376761,1524.7,1524.6,40.8]
[1744334338211,10.02725,1524.7,1524.6,40.8]
[1744334338415,15.02725,1524.7,1524.6,40.8]
[1744334338814,1.31284,1524.6,1524.5,0.0098464]
[1744334339017,16.16874,1524.6,1524.5,0.0098464]
[1744334339715,16.16874,1524.6,1524.5,40.8098464]
[1744334340319,4.52062,1524.7,1524.5,40.8098464]
[1744334340617,1.31284,1524.6,1524.5,40.8098464]
[1744334340826,6.97074,1524.6,1524.5,40.8098464]
[1744334341727,0.0098464,1524.8,1524.7,1.31275]
[1744334342032,11.50773294,1525.2,1524.9,1.31253]
[1744334342326,1.31241,1525.1,1525.0,15.4498]
[1744334342527,1.31241,1525.1,1525.0,10.0338]
[1744334343727,0.0098464,1525.2,1525.0,15.0338]
[1744334343916,0.0098464,1525.2,1525.1,6.81491]
[1744334344123,0.0098464,1525.2,1525.1,5.5025]
[1744334344327,0.0098464,1525.2,1525.1,10.5025]
[1744334344531,0.0098464,1525.2,1525.1,51.3025]
[1744334344727,26.59330537,1525.6,1525.1,54.5103]
[1744334344928,1.31207,1525.5,1525.3,1.31219]
[1744334345119,1.31207,1525.5,1525.4,9.5945]
[1744334345428,6.92267,1525.5,1525.4,5.1388]
[1744334345823,1.31207,1525.5,1525.4,45.9388]
[1744334346026,27.91521177,1525.6,1525.4,50.9388]
[1744334346218,26.60315177,1525.6,1525.4,47.25093]
[1744334346429,26.60315177,1525.6,1525.4,45.9388]
[1744334346628,1.31206,1525.5,1525.4,45.9388]
[1744334348030,6.9324764,1525.6,1525.4,47.25094]
[1744334348231,0.0098464,1525.6,1525.4,45.9388]
[1744334348433,1.3218464,1525.6,1525.4,47.25088]
[1744334348634,1.3218464,1525.6,1525.4,45.9388]
[1744334349133,1.3218364,1525.6,1525.4,47.25094]
[1744334349636,0.0098464,1525.6,1525.5,1.31206]
[1744334349837,0.0098464,1525.6,1525.5,17.01726]
[1744334350335,0.0098464,1525.6,1525.5,57.81726]
[1744334350631,0.0098464,1525.6,1525.5,56.5052]
[1744334351426,0.0098464,1525.6,1525.5,57.81726]
[1744334352729,0.0098464,1525.6,1525.5,66.02506]
[1744334352928,1.31173,1525.9,1525.7,1.31186]
[1744334353133,1.31173,1525.9,1525.8,5.324]
[1744334354437,6.77843,1525.9,1525.8,5.324]
[1744334354628,5.4667,1525.9,1525.5,55.40804]
[1744334354835,1.31181,1525.8,1525.6,5.4262]
[1744334356234,4.51969,1525.7,1525.6,5.4262]
[1744334356435,1.31198,1525.6,1525.5,46.215]
[1744334356734,5.4667,1525.6,1525.5,46.215]
[1744334356940,1.31187,1525.8,1525.5,47.52699]
[1744334357232,1.31187,1525.8,1525.6,5.2654]
[1744334357739,1.31183,1525.8,1525.6,11.20612]
[1744334358036,1.31183,1525.8,1525.7,4.7572]
[1744334358236,1.31183,1525.8,1525.7,10.0226]
[1744334358439,1.31177,1525.9,1525.7,10.0226]
[1744334358639,1.31177,1525.9,1525.7,11.33448]
[1744334358941,1.31177,1525.9,1525.7,10.0226]
[1744334359242,6.71357,1525.9,1525.7,10.0226]
[1744334359841,1.31181,1525.8,1525.7,10.0226]
[1744334362339,1.31181,1525.8,1525.6,5.94076]
[1744334362340,1.31189,1525.7,1525.6,4.6288]
[1744334362540,1.31189,1525.7,1525.6,10.1187]
[1744334363446,1.31187,1525.8,1525.6,16.43063]
[1744334363741,1.31187,1525.8,1525.7,5.1683]
[1744334363938,11.75706,1526.0,1525.7,13.3761]
[1744334364143,10.90204606,1526.4,1526.0,1.31163]
[1744334364343,1.3115,1526.2,1526.1,15.0122]
[1744334366445,1.31144,1526.3,1526.1,15.0122]
[1744334366743,1.31138,1526.3,1526.2,5.5052]
[1744334367250,1.31138,1526.3,1526.2,10.2852]
[1744334367846,9.00558606,1526.4,1526.2,11.59666]
[1744334368048,9.00558606,1526.4,1526.3,5.5052]
[1744334368446,9.00558606,1526.4,1526.3,15.02438]
[1744334368447,7.69424606,1526.4,1526.3,15.02438]
[1744334368844,1.31119,1526.6,1526.3,13.713]
[1744334369147,8.7824,1526.8,1526.4,53.01947]
[1744334369349,10.09341,1526.8,1526.6,1.31109]
[1744334369539,10.09335,1526.8,1526.7,5.1544]
[1744334369942,9.00515606,1526.9,1526.7,5.1544]
[1744334370137,7.69424606,1526.9,1526.8,42.11095]
[1744334370348,9.00510606,1526.9,1526.8,40.8]
[1744334370546,9.00510606,1526.9,1526.8,45.9544]
[1744334370742,7.69424606,1526.9,1526.8,45.9544]
[1744334370952,9.00510606,1526.9,1526.8,45.9544]
[1744334371151,7.69424606,1526.9,1526.8,47.26535]
[1744334371450,7.69424606,1526.9,1526.8,45.9544]
[1744334371652,9.00510606,1526.9,1526.8,45.9544]
[1744334371843,14.31190606,1526.9,1526.8,40.8]
[1744334372450,7.69424606,1526.9,1526.8,47.51295]
[1744334373451,7.69424606,1526.9,1526.8,53.02215]
[1744334373961,7.69424606,1526.9,1526.8,58.02215]
[1744334376750,7.69424606,1526.9,1526.8,58.51643454]
[1744334377048,9.00510606,1526.9,1526.8,51.7092]
[1744334377250,14.55490606,1526.9,1526.8,51.7092]
[1744334377648,7.69424606,1526.9,1526.8,53.02015]
[1744334378160,9.00510606,1526.9,1526.8,51.7092]
[1744334378359,7.69424606,1526.9,1526.8,53.02015]
[1744334378869,7.69424606,1526.9,1526.8,58.02015]
[1744334381170,1.86763166,1526.9,1526.8,74.89215]
[1744334381864,0.50507166,1526.9,1526.8,74.89215]
[1744334382070,6.68041,1527.5,1527.3,1.31046]
[1744334382363,6.68041,1527.5,1527.4,5.4]
[1744334382557,6.68041,1527.5,1527.4,10.6389]
[1744334383358,5.86901,1527.6,1527.4,11.94933]
[1744334383560,11.11761,1527.6,1527.4,11.94933]
[1744334383762,11.11756,1527.6,1527.5,5.2389]
[1744334384265,1.31024,1527.7,1527.5,6.54925]
[1744334384465,1.31035,1527.5,1527.4,8.6078]
[1744334384666,1.31035,1527.5,1527.4,13.9256]
[1744334384862,1.31035,1527.5,1527.4,5.4]
[1744334385169,1.31052,1527.3,1527.2,0.0098464]
[1744334386166,6.68302,1527.3,1527.2,0.0098464]
[1744334388071,11.68302,1527.3,1527.2,0.0098464]
[1744334388673,5.3725,1527.3,1527.2,0.0098464]
[1744334388874,6.68302,1527.3,1527.2,0.0098464]
[1744334389174,11.68302,1527.3,1527.2,0.0098464]
[1744334389473,6.68302,1527.3,1527.2,0.0098464]
[1744334391671,6.68302,1527.3,1527.2,1.3204464]
[1744334391672,5.3725,1527.3,1527.2,1.3204464]
[1744334391874,5.3725,1527.3,1527.2,6.7184464]
[1744334392073,6.51091,1527.5,1527.3,1.31052]
[1744334392274,6.51091,1527.5,1527.4,5.0914]
[1744334392480,5.2005,1527.5,1527.4,6.40183]
[1744334392773,6.51085,1527.5,1527.4,5.0914]
[1744334392972,5.2005,1527.5,1527.3,1.31049]
[1744334393273,6.51085,1527.5,1527.3,6.40189]
[1744334393670,6.51085,1527.5,1527.2,8.6156464]
[1744334393671,5.2005,1527.5,1527.2,8.6156464]
[1744334393970,1.31052,1527.3,1527.2,5.4078464]
[1744334394773,6.58757,1527.4,1527.2,6.7184264]
[1744334394976,6.58757,1527.4,1527.2,12.0375264]
[1744334395274,6.58762,1527.3,1527.2,5.4078464]
[1744334399379,1.31069,1527.1,1527.0,5.388]
[1744334399779,14.7565,1527.2,1526.9,6.48869]
[1744334400078,6.62925,1527.1,1526.9,6.4887]
[1744334400280,5.3185,1527.0,1526.8,49.3958]
[1744334400580,0.0098464,1527.1,1527.0,1.31077]
[1744334401974,0.0098464,1527.1,1527.0,4.51857]
[1744334402180,0.0098464,1527.1,1527.0,13.97617]
[1744334403776,4.4015,1527.5,1527.4,1.31043]
[1744334404083,5.1519,1527.6,1527.5,1.31035]
[1744334404279,7.7247,1527.8,1527.4,3.2078]
[1744334404481,7.7247,1527.8,1527.7,1.31017]
[1744334404879,12.8766,1527.8,1527.7,42.11017]
[1744334405184,8.3597,1527.8,1527.7,42.11017]
[1744334405380,3.2078,1527.8,1527.7,45.9201]
[1744334405575,9.66979,1527.8,1527.7,40.8]
[1744334405775,6.46199,1527.8,1527.7,40.8]
[1744334406082,6.46199,1527.8,1527.7,46.0374]
[1744334406277,11.46199,1527.8,1527.7,40.8]
[1744334406581,11.46199,1527.8,1527.6,0.0098464]
[1744334406582,1.31017,1527.7,1527.6,0.0098464]
[1744334406777,6.86307,1527.7,1527.6,0.0098464]
[1744334407281,5.5529,1527.7,1527.6,0.0098464]
[1744334407482,11.86307,1527.7,1527.6,40.8098464]
[1744334407785,16.40107,1527.7,1527.6,40.8098464]
[1744334408572,4.51795,1527.8,1527.6,40.8098464]
[1744334408775,5.1227,1527.8,1527.6,40.8098464]
[1744334408974,6.43285,1527.8,1527.6,40.8098464]
[1744334409284,6.43287,1527.7,1527.6,40.8098464]
[1744334410581,11.43287,1527.7,1527.6,40.8098464]
[1744334410784,6.43287,1527.7,1527.6,40.8098464]
[1744334413693,11.43287,1527.7,1527.6,40.8098464]
[1744334415683,11.43287,1527.7,1527.6,6.4e-06]
[1744334415991,16.81987,1527.7,1527.6,6.4e-06]
[1744334416786,11.43287,1527.7,1527.6,6.4e-06]
[1744334417688,1.31052,1527.3,1527.2,40.8]
[1744334417990,4.51832,1527.3,1527.2,40.8]
[1744334418894,9.85772,1527.3,1527.2,40.8]
[1744334420096,14.85772,1527.3,1527.2,40.8]
[1744334420291,1.3106,1527.2,1527.1,0.0098464]
[1744334420592,11.0725,1527.2,1527.1,0.0098464]
[1744334420794,16.0725,1527.2,1527.1,0.0098464]
[1744334420988,4.51834,1527.3,1527.1,0.0098464]
[1744334421290,11.53288,1527.4,1527.2,40.8]
[1744334421483,10.2224,1527.4,1527.2,47.49477]
[1744334421688,10.28596885,1527.4,1527.3,6.69472]
[1744334422686,10.28596885,1527.4,1527.3,11.69472]
[1744334423092,11.59639885,1527.4,1527.3,46.1842]
[1744334423592,17.21779885,1527.4,1527.3,46.1842]
[1744334424197,6.93183,1527.4,1527.3,46.1842]
[1744334424898,5.6214,1527.4,1527.3,46.1842]
[1744334425096,4.51821,1527.5,1527.3,46.1842]
[1744334425396,10.03381,1527.5,1527.4,5.2477]
[1744334425596,3.2078,1527.5,1527.4,6.55813]
[1744334426095,3.2078,1527.5,1527.4,5.2477]
[1744334426293,4.51815,1527.5,1527.4,5.2477]
[1744334426491,4.51815,1527.5,1527.4,46.0477]
[1744334426693,3.2078,1527.5,1527.4,47.35813]
[1744334427098,4.51815,1527.5,1527.4,46.0477]
[1744334427801,9.91795,1527.5,1527.4,46.0477]
[1744334429301,6.71015,1527.5,1527.4,46.0477]
[1744334429802,9.91795,1527.5,1527.4,40.8]
[1744334432202,1.31035,1527.5,1527.4,40.8]
[1744334432904,1.31032,1527.6,1527.4,42.11042]
[1744334433203,1.31032,1527.6,1527.5,5.4456]
[1744334434201,1.31035,1527.5,1527.4,40.8]
[1744334434401,5.82905,1527.5,1527.4,40.8]
[1744334434701,11.29555,1527.5,1527.4,40.8]
[1744334437801,1.3106,1527.2,1527.1,0.0098464]
[1744334438000,4.5184,1527.2,1527.1,5.2921464]
[1744334438204,1.3106,1527.2,1527.1,46.0921464]
[1744334438399,3.2078,1527.4,1527.1,52.4027764]
[1744334438590,1.31052,1527.3,1527.2,5.2823]
[1744334439399,1.31052,1527.3,1527.2,46.0823]
[1744334441308,3.2078,1527.4,1527.2,47.39284]
[1744334441498,3.2078,1527.4,1527.3,10.2793]
[1744334441700,3.2078,1527.4,1527.3,15.0093]
[1744334442006,1.31043,1527.4,1527.3,15.0093]
[1744334442206,1.31043,1527.4,1527.3,55.8093]
[1744334442504,6.41703,1527.4,1527.3,55.8093]
[1744334442705,10.79513,1527.4,1527.3,55.8093]
[1744334443506,10.79513,1527.4,1527.3,46.4104]
[1744334443710,10.79513,1527.4,1527.3,40.8]
[1744334443711,20.17613,1527.4,1527.3,40.8]
[1744334445300,15.17613,1527.4,1527.3,40.8]
[1744334446710,1.3106,1527.2,1527.1,0.0098464]
[1744334446909,1.31086,1526.9,1526.8,9.8526]
[1744334447709,1.31086,1526.9,1526.8,50.6526]
[1744334448306,1.31086,1526.9,1526.8,46.2237]
[1744334448512,1.31095,1526.8,1526.7,0.0098464]
[1744334448711,11.45455,1526.8,1526.7,0.0098464]
[1744334449606,11.45455,1526.8,1526.7,40.8098464]
[1744334452714,1.31095,1526.8,1526.7,49.6671464]
[1744334453813,1.31095,1526.8,1526.7,54.9035464]
[1744334454811,10.92235389,1526.9,1526.7,54.9035464]
[1744334455017,7.71455389,1526.9,1526.8,5.143]
[1744334455211,9.02541389,1526.9,1526.8,5.143]
[1744334455412,7.71455389,1526.9,1526.8,11.45395]
[1744334455809,7.71455389,1526.9,1526.8,52.25395]
[1744334457922,10.29591825,1527.0,1526.9,1.31086]
[1744334457923,0.0098464,1527.0,1526.9,1.31086]
[1744334458222,0.0098464,1527.0,1526.9,15.31766]
[1744334458427,0.0098464,1527.0,1526.9,20.31766]
[1744334458623,0.0098464,1527.0,1526.9,61.11766]
[1744334459324,7.71455389,1527.4,1526.9,59.8068]
[1744334459626,1.3106,1527.2,1527.0,11.142]
[1744334459924,1.3106,1527.2,1527.1,9.8837]
[1744334460829,4.5184,1527.2,1527.1,9.8837]
[1744334461127,9.0936,1527.2,1527.1,5.429]
[1744334461832,1.31077,1527.0,1526.9,40.8]
[1744334462029,1.31077,1527.0,1526.9,46.0538]
[1744334462925,6.57137,1527.0,1526.9,46.0538]
[1744334463929,9.77917,1527.0,1526.9,46.0538]
[1744334464129,6.57137,1527.0,1526.9,46.0538]
[1744334465526,14.77917,1527.0,1526.9,40.8]
[1744334465830,1.31095,1526.8,1526.7,0.0098464]
[1744334466032,4.51875,1526.8,1526.7,0.0098464]
[1744334466629,13.93195,1526.8,1526.7,0.0098464]
[1744334468427,19.30195,1526.8,1526.7,6.4e-06]
[1744334470030,27.01650389,1526.8,1526.7,6.4e-06]
[1744334470225,1.31129,1526.4,1526.3,40.8]
[1744334470419,3.27823,1526.4,1525.9,10.08222306]
[1744334470624,1.31146,1526.2,1526.1,9.709]
[1744334470925,1.31146,1526.2,1526.1,45.9077]
[1744334472426,9.7169864,1526.3,1526.1,45.9077]
[1744334472731,1.31146,1526.2,1526.1,40.8]
[1744334472939,6.34416,1526.2,1526.1,40.8]
[1744334473225,6.34416,1526.2,1526.1,46.2009]
[1744334473427,6.34416,1526.2,1526.1,40.8]
[1744334474533,1.31146,1526.2,1526.1,40.8]
[1744334474734,0.0098464,1526.3,1526.1,40.8]
[1744334474934,0.0098464,1526.3,1526.2,9.7308]
[1744334476035,1.3212264,1526.3,1526.2,9.7308]
[1744334476532,0.0098464,1526.3,1526.2,16.04226]
[1744334476925,0.0098464,1526.3,1526.2,56.84226]
[1744334477329,0.0098464,1526.3,1526.2,62.21426]
[1744334479823,0.0098464,1526.3,1526.2,55.5308]
[1744334480025,1.3212264,1526.3,1526.2,50.5308]
[1744334481541,1.3212264,1526.3,1526.2,46.2009]
[1744334481836,1.3212264,1526.3,1526.2,40.8]
[1744334482228,6.5725264,1526.3,1526.2,40.8]
[1744334484027,0.0098464,1526.3,1526.2,40.8]
[1744334484339,0.0098464,1526.3,1526.2,46.0981]
[1744334484838,6.6127264,1526.3,1526.2,46.0981]
[1744334485038,6.6127264,1526.3,1526.2,40.8]
[1744334486743,1.31155,1526.1,1526.0,0.0098464]
[1744334486944,4.51935,1526.1,1526.0,0.0098464]
[1744334487239,4.51935,1526.1,1526.0,6.4e-06]
[1744334487240,14.88235,1526.1,1526.0,6.4e-06]
[1744334487543,1.31198,1525.6,1525.5,5.2635]
[1744334488245,15.91394,1525.8,1525.3,13.29002306]
[1744334488538,6.20153,1525.5,1525.3,15.17972306]
[1744334488732,6.20153,1525.5,1525.4,0.0098464]
[1744334488933,1.31213,1525.5,1525.4,40.8098464]
[1744334489328,1.31213,1525.5,1525.4,45.9073464]
[1744334490640,1.31213,1525.5,1525.4,40.8098464]
[1744334493439,1.31203,1525.6,1525.4,40.8098464]
[1744334493742,1.31203,1525.6,1525.5,5.0559]
[1744334495744,1.31206,1525.5,1525.4,40.8098464]
[1744334496436,8.26790388,1525.8,1525.4,45.8098464]
[1744334496642,1.31198,1525.6,1525.5,14.375]
[1744334496946,3.2078,1525.8,1525.5,14.1705]
[1744334497135,4.51968,1525.8,1525.5,15.84754]
[1744334497648,1.31188,1525.8,1525.5,19.05534]
[1744334497844,1.3118,1525.9,1525.6,1.31197]
[1744334498336,1.31167,1526.0,1525.7,4.51965]
[1744334498848,7.71455389,1526.1,1525.6,3.2078]
[1744334498849,1.31181,1525.8,1525.6,3.2078]
[1744334499041,1.31181,1525.8,1525.5,15.84754]
[1744334499541,1.3119,1525.7,1525.5,14.5355]
[1744334500040,1.31197,1525.7,1525.5,14.5355]
[1744334500248,1.31198,1525.6,1525.5,14.5355]
[1744334500444,4.555,1525.9,1525.5,15.84756]
[1744334500645,1.31188,1525.8,1525.6,3.2078]
[1744334501349,6.48689,1526.0,1525.8,1.31179]
[1744334501350,1.31168,1526.0,1525.8,1.31179]
[1744334501541,1.31189,1525.7,1525.6,3.2078]
[1744334501735,3.27888,1526.1,1525.6,9.1215]
[1744334501940,1.31184,1525.8,1525.6,13.64125]
[1744334502143,1.31175,1525.9,1525.7,1.31186]
[1744334502449,1.31183,1525.8,1525.6,13.64122]
[1744334502747,1.31179,1525.9,1525.7,1.31189]
[1744334502949,1.31171,1526.0,1525.8,1.31177]
[1744334503253,1.31169,1526.0,1525.8,5.364]
[1744334503551,1.31161,1526.1,1525.9,1.31172]
[1744334503742,1.31161,1526.1,1526.0,8.8956]
[1744334505253,1.3115,1526.2,1526.0,10.20721]
[1744334505750,1.3115,1526.2,1526.0,8.8956]
[1744334505941,1.31152,1526.2,1526.0,8.8956]
[1744334506137,1.31152,1526.2,1525.8,8.5718]
[1744334506138,8.6273164,1526.3,1525.8,8.5718]
[1744334506342,1.31172,1525.9,1525.8,12.1317]
[1744334506552,1.31172,1525.9,1525.8,7.7901]
[1744334506754,1.31172,1525.9,1525.8,3.2078]
[1744334506950,1.31184,1525.8,1525.6,4.5823]
[1744334507155,1.31189,1525.7,1525.6,4.5823]
[1744334508353,1.31187,1525.8,1525.6,4.5823]
[1744334508748,5.339,1525.9,1525.6,4.5823]
[1744334509047,8.89704,1526.0,1525.7,1.31183]
[1744334509244,3.2078,1526.0,1525.6,4.5823]
[1744334509445,3.2078,1526.0,1525.8,1.31173]
[1744334509644,3.2078,1526.0,1525.9,4.2548]
[1744334510044,4.51943,1526.0,1525.9,4.2548]
[1744334511046,1.31163,1526.0,1525.9,4.2548]
[1744334512348,1.31157,1526.1,1525.9,8.77432]
[1744334512542,1.31157,1526.1,1526.0,4.289]
[1744334514259,4.3516,1526.2,1526.0,4.289]
[1744334514449,5.66311,1526.2,1526.0,4.289]
[1744334514649,6.7235764,1526.3,1526.0,5.60063]
[1744334514955,6.7235764,1526.3,1526.1,1.31154]
[1744334514956,1.3212764,1526.3,1526.1,1.31154]
[1744334515362,0.0098464,1526.3,1526.2,1.31146]
[1744334515654,0.0098464,1526.3,1526.1,9.88329]
[1744334515655,1.3212764,1526.3,1526.1,9.88329]
[1744334515858,1.3212764,1526.3,1526.2,5.1586]
[1744334517246,3.2176464,1526.3,1526.0,4.289]
[1744334517450,5.2171,1526.2,1526.1,5.1586]
[1744334517746,6.52856,1526.2,1526.1,5.1586]
[1744334521662,1.31163,1526.0,1525.9,4.2548]
[1744334521955,16.00128,1526.1,1525.7,4.6429]
[1744334522255,4.9714,1526.0,1525.7,9.6294]
[1744334522458,4.9714,1526.0,1525.7,10.94125]
[1744334522459,6.28311,1526.0,1525.7,10.94125]
[1744334522765,7.751,1526.1,1525.9,1.31167]
[1744334522955,7.751,1526.1,1526.0,4.9865]
[1744334523258,6.28287,1526.2,1526.0,9.50588]
[1744334523460,6.28292,1526.2,1526.0,4.9865]
[1744334523659,1.31155,1526.1,1526.0,4.9865]
[1744334523860,10.82615,1526.1,1526.0,4.9865]
[1744334524365,1.31181,1525.8,1525.7,4.6429]
[1744334524863,1.31179,1525.9,1525.7,4.6429]
[1744334525061,1.31179,1525.9,1525.8,5.0734]
[1744334525361,9.5377,1526.0,1525.8,5.0734]
[1744334525362,10.8494,1526.0,1525.8,6.38519]
[1744334525553,10.8494,1526.0,1525.8,5.0734]
[1744334525754,6.455,1526.0,1525.9,5.0734]
[1744334526163,1.31181,1525.8,1525.7,9.9969]
[1744334526364,5.1433,1526.0,1525.7,15.0703]
[1744334526564,1.31181,1525.8,1525.7,15.0703]
[1744334527361,1.31206,1525.5,1525.4,40.8098464]
[1744334527956,10.83146,1525.5,1525.4,40.8098464]
[1744334529061,9.5194,1525.5,1525.4,40.8098464]
[1744334529261,5.1562,1525.5,1525.4,45.9960464]
[1744334529567,6.46826,1525.5,1525.4,45.9960464]
[1744334529954,5.1562,1525.5,1525.4,45.9960464]
[1744334530354,6.46826,1525.5,1525.4,40.8098464]
[1744334533363,11.46826,1525.5,1525.4,40.8098464]
[1744334533564,1.31241,1525.1,1525.0,8.3571]
[1744334533956,1.31241,1525.1,1525.0,3.2078]
[1744334534359,7.71455389,1525.9,1525.2,3.2078]
[1744334534566,12.83467103,1526.1,1525.9,1.31172]
[1744334534767,12.83467103,1526.1,1525.9,6.66672]
[1744334535061,12.84451743,1526.1,1526.0,1.31163]
[1744334535363,30.65355063,1526.7,1526.4,1.31128]
[1744334535560,26.35455063,1526.7,1526.5,8.3571]
[1744334535769,26.35455063,1526.7,1526.6,1.31112]
[1744334536562,26.35455063,1526.7,1526.6,40.8]
[1744334536764,27.66558063,1526.7,1526.6,40.8]
[1744334537060,1.3208064,1526.8,1526.6,40.8]
[1744334537265,5.243,1526.7,1526.6,40.8]
[1744334537664,0.0098464,1526.8,1526.6,40.8]
[1744334537864,0.0098464,1526.8,1526.7,14.80783]
[1744334538266,0.0098464,1526.8,1526.7,23.64953]
[1744334538460,0.0098464,1526.8,1526.7,64.44953]
[1744334542263,0.0098464,1526.8,1526.7,59.44953]
[1744334542864,6.4e-06,1526.8,1526.7,59.44953]
[1744334543365,6.4e-06,1526.8,1526.7,64.44953]
[1744334543767,6.4e-06,1526.8,1526.7,59.44953]
[1744334545366,4.2156,1527.5,1526.7,59.44953]